Workbook

Sheet Corporate Model
A2: Period | E2: 2016 | F2: =E2+1 -> 2017 | G2: =F2+1 -> 2018 | H2: 2019 | I2: 2020 | J2: 2021 | K2: 2022 | L2: 2023
A3: Historic Switch | E3: TRUE | F3: FALSE | G3: FALSE | H3: FALSE | I3: FALSE | J3: FALSE | K3: FALSE | L3: FALSE
A5: Historic Balance
B6: Assets
C7: Cash Balance | E7: 150
C8: Gross Assets | E8: 1000
C9: Acccumulated Depreciation | E9: 450
C10: Net Plant | E10: =E8-E9 -> 550
D11: Total Assets | E11: =E10+E7 -> 700
C13: Debt | E13: 400
C14: Equity | E14: =E11-E13 -> 300
D15: Total | E15: =SUM(E13:E14) -> 700
A17: Operating Analysis and Assumptions
B18: EBITDA | E18: 150 | F18: 100 | G18: 280 | H18: =G18*1.03 -> 288.4 | I18: 297.052 | J18: 305.96356 | K18: 315.1424668 | L18: 324.5967408
B19: Cap Exp | E19: 80 | F19: 400 | G19: 200 | H19: 80 | I19: 80 | J19: 80 | K19: 80 | L19: 80
A21: Depreciation
B22: Historic Growth | E22: 0.09205804514
B23: Life | E23: 7
B25: Gross Plant - Existing Plant
C26: Opening Balance | F26: =E28 -> 1000 | G26: =F28 -> 891.9934028 | H26: 774.0439294 | I26: 645.2362581 | J26: 504.5708043 | K26: 350.9559639 | L26: 183.1996415
C27: Less Retirement | E27: 98.90188317 | F27: =E27*(1+$E$22) -> 108.0065972 | G27: =F27*(1+$E$22) -> 117.9494734 | H27: 128.8076713 | I27: 140.6654538 | J27: 153.6148405 | K27: 167.7563224 | L27: 183.1996415
C28: Closing Balance | E28: =IF(E3,E8,E26-E27) -> 1000 | F28: =IF(F3,F8,F26-F27) -> 891.9934028 | G28: 774.0439294 | H28: 645.2362581 | I28: 504.5708043 | J28: 350.9559639 | K28: 183.1996415 | L28: 4.297768896e-08
C30: Depreciation | E30: =1/E23 -> 0.1428571429 | F30: =AVERAGE(F28,F26)*$E$30 -> 135.1423859 | G30: =AVERAGE(G28,G26)*$E$30 -> 119.0026666 | H30: 101.3771563 | I30: 82.12907589 | J30: 61.10905487 | K30: 38.15397181 | L30: 13.08568868
B32: Accumulated Depreciation
C33: Opening Balance | F33: =E36 -> 450 | G33: =F36 -> 477.1357887 | H33: 478.1889819 | I33: 450.7584668 | J33: 392.222089 | K33: 299.7163034 | L33: 170.1139528
C34: Add: Depreciation | F34: =F30 -> 135.1423859 | G34: =G30 -> 119.0026666 | H34: 101.3771563 | I34: 82.12907589 | J34: 61.10905487 | K34: 38.15397181 | L34: 13.08568868
C35: Less: Retirements | F35: =F27 -> 108.0065972 | G35: =G27 -> 117.9494734 | H35: 128.8076713 | I35: 140.6654538 | J35: 153.6148405 | K35: 167.7563224 | L35: 183.1996415
C36: Closing Balance | E36: =IF(E3,E9,E33+E34-E35) -> 450 | F36: =IF(F3,F9,F33+F34-F35) -> 477.1357887 | G36: 478.1889819 | H36: 450.7584668 | I36: 392.222089 | J36: 299.7163034 | K36: 170.1139528 | L36: 4.915665386e-08
C38: Net Plant | E38: =E28-E36 -> 550 | F38: =F28-F36 -> 414.8576141 | G38: =G28-G36 -> 295.8549475 | H38: 194.4777912 | I38: 112.3487154 | J38: 51.23966049 | K38: 13.08568868 | L38: -6.178964895e-09
B40: New Gross Plant
C41: Opening Balance | F41: =E43 -> 0 | G41: =F43 -> 400 | H41: 600 | I41: 680 | J41: 760 | K41: 840 | L41: 920
C42: Add: Cap Exp | F42: =F19 -> 400 | G42: =G19 -> 200 | H42: 80 | I42: 80 | J42: 80 | K42: 80 | L42: 80
C43: Closing Balance | F43: =SUM(F41:F42) -> 400 | G43: =SUM(G41:G42) -> 600 | H43: 680 | I43: 760 | J43: 840 | K43: 920 | L43: 1000
C45: Depreciation Expense | E45: =E30 -> 0.1428571429 | F45: =AVERAGE(F43,F41)*$E$45 -> 28.57142857 | G45: =AVERAGE(G43,G41)*$E$45 -> 71.42857143 | H45: 91.42857143 | I45: 102.8571429 | J45: 114.2857143 | K45: 125.7142857 | L45: 137.1428571
C47: Accumulated Depreciation | F47: =E47+F45 -> 28.57142857 | G47: =F47+G45 -> 100 | H47: 191.4285714 | I47: 294.2857143 | J47: 408.5714286 | K47: 534.2857143 | L47: 671.4285714
C49: Total Net Plant | E49: =E38+E43-E47 -> 550 | F49: =F38+F43-F47 -> 786.2861855 | G49: 795.8549475 | H49: 683.0492198 | I49: 578.0630011 | J49: 482.6682319 | K49: 398.7999744 | L49: 328.5714286
A52: Financing
B53: Cash Balance
C54: Opening Balance | F54: =E57 -> 150 | G54: =F57 -> 150 | H54: 112 | I54: 115.36 | J54: 118.8208 | K54: 122.385424 | L54: 126.0569867
C55: Add: New Surplus Cash | F55: =F99 -> 0 | G55: =G99 -> 0 | H55: 0 | I55: 0 | J55: 0 | K55: 0 | L55: 0
C56: Less: Cash Use for Deficit | F56: =F96 -> 0 | G56: =G96 -> 38 | H56: -3.36 | I56: -3.4608 | J56: -3.564624 | K56: -3.67156272 | L56: -3.781709602
C57: Closing Balance | E57: =IF(E3,E7,E54+E55) -> 150 | F57: =IF(F3,F7,F54+F55-F56) -> 150 | G57: =IF(G3,G7,G54+G55-G56) -> 112 | H57: 115.36 | I57: 118.8208 | J57: 122.385424 | K57: 126.0569867 | L57: 129.8386963
C58: Interest Income | E58: 0.02 | F58: =AVERAGE(F57,F54)*$E$58 -> 3 | G58: =AVERAGE(G57,G54)*$E$58 -> 2.62 | H58: 2.2736 | I58: 2.341808 | J58: 2.41206224 | K58: 2.484424107 | L58: 2.55895683
C60: Minimum Cash Balance | E60: 0.4 | F60: =$E$60*F18 -> 40 | G60: =$E$60*G18 -> 112 | H60: 115.36 | I60: 118.8208 | J60: 122.385424 | K60: 126.0569867 | L60: 129.8386963
C61: Minimum Test | F61: =F54-F60 -> 110 | G61: =G54-G60 -> 38 | H61: -3.36 | I61: -3.4608 | J61: -3.564624 | K61: -3.67156272 | L61: -3.781709602
B63: Debt Balance
C64: Opening Balance | F64: =E67 -> 400 | G64: =F67 -> 374.5084324 | H64: 408.534174 | I64: 439.1229108 | J64: 383.2815716 | K64: 332.7776111 | L64: 288.66829
C65: Add: New Debt Issued | F65: =F100 -> 0 | G65: =G100 -> 34.02574158 | H65: 30.58873688 | I65: 3.4608 | J65: 3.564624 | K65: 3.67156272 | L65: 3.781709602
C66: Less: Debt Repaid | F66: =F97 -> 25.49156761 | G66: =G97 -> 0 | H66: 0 | I66: 59.30213928 | J66: 54.06858444 | K66: 47.78088379 | L66: 40.32733536
C67: Closing Debt Balance | E67: =IF(E3,E13,E64+E65-E66) -> 400 | F67: =IF(F3,F13,F64+F65-F66) -> 374.5084324 | G67: =IF(G3,G13,G64+G65-G66) -> 408.534174 | H67: =IF(H3,H13,H64+H65-H66) -> 439.1229108 | I67: =IF(I3,I13,I64+I65-I66) -> 383.2815716 | J67: =IF(J3,J13,J64+J65-J66) -> 332.7776111 | K67: =IF(K3,K13,K64+K65-K66) -> 288.66829 | L67: =IF(L3,L13,L64+L65-L66) -> 252.1226643
C68: Interest Expense | E68: 0.05 | F68: =AVERAGE(F67,F64)*$E$68 -> 19.36271081 | G68: =AVERAGE(G67,G64)*$E$68 -> 19.57606516 | H68: 21.19142712 | I68: 20.56011206 | J68: 17.90147957 | K68: 15.53614753 | L68: 13.51977386
A70: Profit and Loss
C71: EBITDA | F71: =F18 -> 100 | G71: 280 | H71: 288.4 | I71: 297.052 | J71: 305.96356 | K71: 315.1424668 | L71: 324.5967408
C72: Less: Depreciation | F72: =F45+F30 -> 163.7138145 | G72: 190.431238 | H72: 192.8057277 | I72: 184.9862187 | J72: 175.3947692 | K72: 163.8682575 | L72: 150.2285458
C73: EBIT | F73: =F71-F72 -> -63.71381449 | G73: =G71-G72 -> 89.56876198 | H73: 95.59427232 | I73: 112.0657813 | J73: 130.5687908 | K73: 151.2742093 | L73: 174.368195
C74: Less: Interest Expense | F74: =F68 -> 19.36271081 | G74: =G68 -> 19.57606516 | H74: 21.19142712 | I74: 20.56011206 | J74: 17.90147957 | K74: 15.53614753 | L74: 13.51977386
C75: Add: Interest Income | F75: =F58 -> 3 | G75: =G58 -> 2.62 | H75: 2.2736 | I75: 2.341808 | J75: 2.41206224 | K75: 2.484424107 | L75: 2.55895683
C76: EBT | F76: =F73-F74+F75 -> -80.0765253 | G76: =G73-G74+G75 -> 72.61269682 | H76: 76.6764452 | I76: 93.8474772 | J76: 115.0793735 | K76: 138.2224859 | L76: 163.407378
C77: Opening NOL Balance | F77: =E80 -> 0 | G77: =F80 -> 80.0765253 | H77: 7.463828471 | I77: 0 | J77: 0 | K77: 0 | L77: 0
C78: Add: Increase from Negative Tax | F78: =MAX(-F76,0) -> 80.0765253 | G78: =MAX(-G76,0) -> 0 | H78: 0 | I78: 0 | J78: 0 | K78: 0 | L78: 0
C79: Less: Use from Positive Taxable | F79: =MIN(MAX(F76,0),F77) -> 0 | G79: =MIN(MAX(G76,0),G77) -> 72.61269682 | H79: 7.463828471 | I79: 0 | J79: 0 | K79: 0 | L79: 0
C80: Closing NOL Balance | F80: =F77+F78-F79 -> 80.0765253 | G80: =G77+G78-G79 -> 7.463828471 | H80: 0 | I80: 0 | J80: 0 | K80: 0 | L80: 0
C81: Less: Taxes Paid | E81: 0.3 | F81: =(F76+F78-F79)*$E$81 -> 0 | G81: =(G76+G78-G79)*$E$81 -> 0 | H81: =(H76+H78-H79)*$E$81 -> 20.76378502 | I81: 28.15424316 | J81: 34.52381205 | K81: 41.46674576 | L81: 49.02221339
C82: Earnings | F82: =F76-F81 -> -80.0765253 | G82: =G76-G81 -> 72.61269682 | H82: 55.91266018 | I82: 65.69323404 | J82: 80.55556146 | K82: 96.7557401 | L82: 114.3851646
A84: Cash Flow Statement
C85: EBITDA | F85: =F71 -> 100 | G85: 280 | H85: 288.4 | I85: 297.052 | J85: 305.96356 | K85: 315.1424668 | L85: 324.5967408
C86: Less: Taxes Paid | F86: =F81 -> 0 | G86: =G81 -> 0 | H86: 20.76378502 | I86: 28.15424316 | J86: 34.52381205 | K86: 41.46674576 | L86: 49.02221339
C87: Less: WC Changes
D88: Net Operating Cash Flow | F88: =F85-F86-F87 -> 100 | G88: =G85-G86-G87 -> 280 | H88: 267.636215 | I88: 268.8977568 | J88: 271.4397479 | K88: 273.675721 | L88: 275.5745274
C89: Less: Capital Expenditures | F89: =F19 -> 400 | G89: 200 | H89: 80 | I89: 80 | J89: 80 | K89: 80 | L89: 80
D90: Cash Before Financing | F90: =F88-F89 -> -300 | G90: =G88-G89 -> 80 | H90: 187.636215 | I90: 188.8977568 | J90: 191.4397479 | K90: 193.675721 | L90: 195.5745274
C91: Less: Interest Expense | F91: =F74 -> 19.36271081 | G91: 19.57606516 | H91: 21.19142712 | I91: 20.56011206 | J91: 17.90147957 | K91: 15.53614753 | L91: 13.51977386
C92: Add: Income | F92: 3 | G92: 2.62 | H92: 2.2736 | I92: 2.341808 | J92: 2.41206224 | K92: 2.484424107 | L92: 2.55895683
C93: Less: Dividends | E93: 0.6 | F93: =$E$93*F82 -> -48.04591518 | G93: =$E$93*G82 -> 43.56761809 | H93: 33.54759611 | I93: 39.41594042 | J93: 48.33333688 | K93: 58.05344406 | L93: 68.63109874
C94: Add: Equity Issues/Buybacks | F94: =cash_reconcile(F85,F64,$E$68,F54,$E$58,F60,$E$93,F73,F89,$E$81,F77,F107,F125) -> 293.8082886 | G94: =cash_reconcile(G85,G64,$E$68,G54,$E$58,G60,$E$93,G73,G89,$E$81,G77,G107,G125) -> -91.50213623 | H94: =cash_reconcile(H85,H64,$E$68,H54,$E$58,H60,$E$93,H73,H89,$E$81,H77,H107,H125) -> -162.3996887 | I94: =cash_reconcile(I85,I64,$E$68,I54,$E$58,I60,$E$93,I73,I89,$E$81,I77,I107,I125) -> -71.96139526 | J94: =cash_reconcile(J85,J64,$E$68,J54,$E$58,J60,$E$93,J73,J89,$E$81,J77,J107,J125) -> -73.5484314 | K94: =cash_reconcile(K85,K64,$E$68,K54,$E$58,K60,$E$93,K73,K89,$E$81,K77,K107,K125) -> -74.78968811 | L94: =cash_reconcile(L85,L64,$E$68,L54,$E$58,L60,$E$93,L73,L89,$E$81,L77,L107,L125) -> -75.6552887
C95: Net Cash Flow | F95: 25.49156761 | G95: -72.02574158 | H95: -27.22873688 | I95: 59.30213928 | J95: 54.06858444 | K95: 47.78088379 | L95: 40.32733536
D96: Add: Cash Use if Negative | F96: =MIN(F61,MAX(-F95,0)) -> 0 | G96: 38 | H96: -3.36 | I96: -3.4608 | J96: -3.564624 | K96: -3.67156272 | L96: -3.781709602
D97: Less: Debt Repaid if Positive | F97: =MIN(MAX(F95,0),F64) -> 25.49156761 | G97: 0 | H97: 0 | I97: 59.30213928 | J97: 54.06858444 | K97: 47.78088379 | L97: 40.32733536
C98: Cash Flow Sub-total | F98: =F95+F96-F97 -> 0 | G98: =G95+G96-G97 -> -34.02574158 | H98: -30.58873688 | I98: -3.4608 | J98: -3.564624 | K98: -3.67156272 | L98: -3.781709602
D99: Surplus Cash | F99: =MAX(F98,0) -> 0 | G99: =MAX(G98,0) -> 0 | H99: 0 | I99: 0 | J99: 0 | K99: 0 | L99: 0
D100: Added Debt | F100: =MAX(-F98,0) -> 0 | G100: =MAX(-G98,0) -> 34.02574158 | H100: 30.58873688 | I100: 3.4608 | J100: 3.564624 | K100: 3.67156272 | L100: 3.781709602
D102: Computed | F102: =F90-F91+F92-F93+F94 -> 25.49149294 | G102: =G90-G91+G92-G93+G94 -> -72.02581948 | H102: -27.22889697 | I102: 59.30211709 | J102: 54.06856235 | K102: 47.78086546 | L102: 40.32732295
D103: Difference | F103: =F95-F102 -> 7.46695091e-05 | G103: =G95-G102 -> 7.790701613e-05 | H103: 0.0001600915912 | I103: 2.218738069e-05 | J103: 2.209700943e-05 | K103: 1.833389322e-05 | L103: 1.240268386e-05
A105: Balance Sheet
B106: Equity Balance
C107: Opening Balance | F107: =E111 -> 300 | G107: =F111 -> 561.7776785 | H107: 499.320621 | I107: 359.2859963 | J107: 313.6018947 | K107: 272.2756878 | L107: 236.1882958
C108: Add: Net Income | F108: =F82 -> -80.0765253 | G108: =G82 -> 72.61269682 | H108: 55.91266018 | I108: 65.69323404 | J108: 80.55556146 | K108: 96.7557401 | L108: 114.3851646
C109: Less: Dividends | F109: =F93 -> -48.04591518 | G109: =G93 -> 43.56761809 | H109: 33.54759611 | I109: 39.41594042 | J109: 48.33333688 | K109: 58.05344406 | L109: 68.63109874
C110: Add: Equity Issues | F110: =F94 -> 293.8082886 | G110: =G94 -> -91.50213623 | H110: -162.3996887 | I110: -71.96139526 | J110: -73.5484314 | K110: -74.78968811 | L110: -75.6552887
C111: Closing Balance | E111: =IF(E3,E14,E107+E108-E109+E110) -> 300 | F111: 561.7776785 | G111: 499.320621 | H111: 359.2859963 | I111: 313.6018947 | J111: 272.2756878 | K111: 236.1882958 | L111: 206.2870729
B113: Assets
C114: Cash Balance | E114: =E57 -> 150 | F114: 150 | G114: 112 | H114: 115.36 | I114: 118.8208 | J114: 122.385424 | K114: 126.0569867 | L114: 129.8386963
C115: Net Plant | E115: =E49 -> 550 | F115: 786.2861855 | G115: 795.8549475 | H115: 683.0492198 | I115: 578.0630011 | J115: 482.6682319 | K115: 398.7999744 | L115: 328.5714286
D116: Total | E116: =SUM(E114:E115) -> 700 | F116: =SUM(F114:F115) -> 936.2861855 | G116: 907.8549475 | H116: 798.4092198 | I116: 696.8838011 | J116: 605.0536559 | K116: 524.8569611 | L116: 458.4101249
C118: Debt | E118: =E67 -> 400 | F118: 374.5084324 | G118: 408.534174 | H118: 439.1229108 | I118: 383.2815716 | J118: 332.7776111 | K118: 288.66829 | L118: 252.1226643
C119: Equity | E119: =E111 -> 300 | F119: =F111 -> 561.7776785 | G119: 499.320621 | H119: 359.2859963 | I119: 313.6018947 | J119: 272.2756878 | K119: 236.1882958 | L119: 206.2870729
D120: Total | E120: =SUM(E118:E119) -> 700 | F120: =SUM(F118:F119) -> 936.2861108 | G120: 907.8547949 | H120: 798.4089072 | I120: 696.8834662 | J120: 605.053299 | K120: 524.8565858 | L120: 458.4097372
C122: Difference | E122: =E120-E116 -> 0 | F122: =F120-F116 -> -7.46695091e-05 | G122: -0.0001525765252 | H122: -0.0003126681164 | I122: -0.0003348554972 | J122: -0.0003569525069 | K122: -0.0003752864001 | L122: -0.0003876890839
C123: Test | E123: =ROUND(E122,3)=0 -> TRUE | F123: =ROUND(F122,3)=0 -> TRUE | G123: TRUE | H123: TRUE | I123: TRUE | J123: TRUE | K123: TRUE | L123: TRUE
C125: Debt to Capital Ratio | F125: 0.4 | G125: 0.45 | H125: 0.55 | I125: 0.55 | J125: 0.55 | K125: 0.55 | L125: 0.55
C126: Acutal Debt to Capital | F126: =F118/F120 -> 0.3999935789 | G126: =G118/G120 -> 0.4499994672 | H126: 0.5499975099 | I126: 0.5499937796 | J126: 0.5499971849 | K126: 0.5499946039 | L126: 0.5499941293
C127: Difference | F127: =F125-F126 -> 6.421060031e-06 | G127: =G125-G126 -> 5.328482526e-07 | H127: 2.490064565e-06 | I127: 6.220351269e-06 | J127: 2.815144206e-06 | K127: 5.39605247e-06 | L127: 5.870654899e-06

Sheet Sheet2
